[Event "FRA-ch Universities 2019"]
[Site "Paris"]
[Date "2019.02.03"]
[Round "7"]
[White "Grezels, Florian"]
[Black "Devallee, Jeremie"]
[Result "0-1"]
[ECO "B76"]
[WhiteElo "2194"]
[BlackElo "2317"]
[Annotator "NA"]
[PlyCount "215"]
[EventDate "2019.02.01"]
[EventType "swiss"]
[EventCountry "FRA"]
[SourceTitle "playchess.com"]
[Source "ChessBase"]
[SourceQuality "1"]
[TimeControl "900+5"]

1. e4 {[%emt 0:00:00]} c5 {[%emt 0:00:02]} 2. Nf3 {[%emt 0:00:00]} d6 {[%emt 0:00:01]} ({Predecessor:} 2... Nc6 3. d4 cxd4 4. Nxd4 d6 5. Nc3 g6 6. Be3 Bg7 7. Qd2 Nf6 8. f3 {0-1 (34) Warchol,K (1492)-Orujov,F (1692) Riga 2018}) 3. d4 {[%emt 0:00:01]} cxd4 {[%emt 0:00:01]} 4. Nxd4 {[%emt 0:00:02]} Nf6 {[%emt 0:00:02]} 5. Nc3 {[%emt 0:00:01]} g6 {[%emt 0:00:01]} 6. Be3 {[%emt 0:00:01]} Bg7 {[%emt 0:00:01]} 7. f3 {[%emt 0:00:03]} O-O $146 {[%emt 0:00:02]} (7... Nc6) 8. Qd2 {[%emt 0:00:01]} Nc6 {[%emt 0:00:01]} 9. g4 {[%emt 0:00:01]} ({Predecessor:} 9. O-O-O Nxd4 10. Bxd4 Be6 {0-1 (34) Warchol,K (1492)-Orujov,F (1692) Riga 2018}) 9... Nxd4 {[%emt 0:00:02]} (9... Be6 10. O-O-O Nxd4 {½-½ (31) Dvoirys,S (2578)-Forster,R (2446) Jerusalem 2015}) 10. Bxd4 {[%emt 0:00:01]} Be6 {[%emt 0:00:02]} 11. O-O-O {[%emt 0:00:03]} Qa5 {[%emt 0:00:42]} 12. a3 {[%emt 0:00:11]} Rab8 {[%emt 0:00:07]} 13. h4 {[%emt 0:00:02]} b5 {[%emt 0:00:02] B76: Sicilian Dragon: Yugoslav Attack, 9 g4 and 9 0-0-0} 14. h5 (14. Nd5 $11 Qxd2+ 15. Rxd2 Bxd5 16. Bxf6 (16. exd5 a6 $11 (16... a5 17. c3 Nd7 18. Bxg7 Kxg7 19. Rd4 Nc5 20. Kc2 Rfc8 21. Rh2 Rb6 22. Kb1 e5 23. dxe6 fxe6 24. Rc2 Nb3 25. Rd1 d5 26. Re1 Rf8 27. Re3 Rf4 28. Be2 a4 29. Bd1 Na5 30. Rh2 Nc4 31. Re1 {½-½ (31) Dvoirys,S (2578)-Forster,R (2446) Jerusalem 2015})) 16... Bxf6 17. Rxd5) 14... b4 {[%emt 0:00:55]} 15. Nb1 {[%emt 0:05:40]} Rfc8 {[%emt 0:01:08]} 16. hxg6 {[%emt 0:00:47]} hxg6 {[%emt 0:03:17]} 17. g5 {[%emt 0:01:03]} ({Predecessor:} 17. Bd3 Qa4 18. Rh4 bxa3 19. Nxa3 Qxd4 20. c3 Nd7 21. f4 {0-1 (34) Warchol,K (1492)-Orujov,F (1692) Riga 2018}) 17... Nh5 {[%emt 0:00:19]} 18. Bxg7 {[%emt 0:00:46]} Kxg7 {[%emt 0:00:07]} 19. Bh3 {[%emt 0:00:27]} Qa4 {[%emt 0:02:01]} 20. Bxe6 {[%emt 0:00:54]} fxe6 {[%emt 0:00:03]} 21. Rh2 {[%emt 0:02:28]} Qb3 {[%emt 0:01:27]} 22. axb4 {[%emt 0:01:30]} Rxb4 {[%emt 0:00:49]} 23. c3 {[%emt 0:00:07]} Ra4 {[%emt 0:00:59]} 24. Qc2 {[%emt 0:00:47]} Qb5 {[%emt 0:00:02]} 25. Rdh1 {[%emt 0:00:50]} Qxg5+ {[%emt 0:00:17]} 26. Kd1 {[%emt 0:00:15]} Qe3 {[%emt 0:00:35]} 27. Qxa4 {[%emt 0:00:21]} Qxf3+ {[%emt 0:00:01]} 28. Kc1 {[%emt 0:00:04]} Ng3 {[%emt 0:00:51]} 29. Qd1 {[%emt 0:00:35]} Qxe4 {[%emt 0:00:37]} 30. Rh7+ {[%emt 0:00:12]} Kf6 {[%emt 0:00:01]} 31. Rf1+ {[%emt 0:00:07]} Nxf1 {[%emt 0:00:21]} 32. Qxf1+ {[%emt 0:00:01]} Qf5 {[%emt 0:00:00]} 33. Qg1 {[%emt 0:00:07]} Rc5 {[%emt 0:00:34]} 34. Rh2 {[%emt 0:00:07]} (34. Nd2 $18 Qf4 35. Rh8) 34... Kg7 {[%emt 0:00:44]} 35. Rf2 {[%emt 0:00:03]} Qd3 {[%emt 0:00:10]} 36. Rd2 {[%emt 0:00:06]} Qf5 {[%emt 0:00:19]} 37. Na3 {[%emt 0:00:03]} Qf6 {[%emt 0:00:15]} 38. Nc2 {[%emt 0:00:05]} Rf5 {[%emt 0:00:01]} 39. Rd1 {[%emt 0:00:06]} Rf2 {[%emt 0:00:02]} 40. Qg3 {[%emt 0:00:11]} e5 {[%emt 0:00:09]} 41. Qe3 {[%emt 0:00:07]} a5 {[%emt 0:00:08]} 42. Ne1 {[%emt 0:00:03]} a4 {[%emt 0:00:13]} 43. Nd3 {[%emt 0:00:06]} Rf3 {[%emt 0:00:02]} 44. Qd2 {[%emt 0:00:05]} a3 {[%emt 0:00:12]} 45. bxa3 {[%emt 0:00:07]} e4 {[%emt 0:00:00]} 46. Nb2 {[%emt 0:00:05]} Rxc3+ {[%emt 0:00:01]} 47. Kb1 {[%emt 0:00:03]} Rxa3 {[%emt 0:00:14]} 48. Qb4 {[%emt 0:00:06]} Re3 {[%emt 0:01:10]} 49. Nc4 {[%emt 0:00:01]} Re2 {[%emt 0:00:07]} 50. Nb6 {[%emt 0:00:08]} Qf3 {[%emt 0:00:17]} 51. Qd4+ {[%emt 0:00:06]} Kf7 {[%emt 0:00:05]} 52. Qd5+ {[%emt 0:00:04]} Kg7 {[%emt 0:00:01]} 53. Qd4+ {[%emt 0:00:01]} Kf7 {[%emt 0:00:05]} 54. Qd5+ {[%emt 0:00:00]} Kg7 {[%emt 0:00:01]} 55. Qd4+ {[%emt 0:00:03]} Kh7 {[%emt 0:00:04]} 56. Qd5 {[%emt 0:00:12]} Re3 {[%emt 0:00:10]} 57. Na4 {[%emt 0:00:12]} Rb3+ {[%emt 0:00:07]} 58. Nb2 {[%emt 0:00:01]} Qc3 {[%emt 0:00:14]} 59. Rh1+ {[%emt 0:00:05]} Kg7 {[%emt 0:00:00]} 60. Rh2 {[%emt 0:00:09]} e3 {[%emt 0:00:02]} 61. Qe4 {[%emt 0:00:06]} e5 {[%emt 0:00:21]} 62. Qd5 {[%emt 0:00:05]} Rb6 {[%emt 0:00:09]} 63. Qd1 {[%emt 0:00:05]} Qb3 {[%emt 0:00:06]} 64. Qh1 {[%emt 0:00:05]} Qd3+ {[%emt 0:00:05]} 65. Rc2 {[%emt 0:00:05]} e2 {[%emt 0:00:06]} 66. Qe1 {[%emt 0:00:05]} Qd1+ {[%emt 0:00:02]} 67. Rc1 {[%emt 0:00:04]} Qd3+ {[%emt 0:00:04]} 68. Rc2 {[%emt 0:00:05]} Qd1+ {[%emt 0:00:10]} 69. Rc1 {[%emt 0:00:00]} Qxe1 {[%emt 0:00:07]} 70. Rxe1 {[%emt 0:00:01]} d5 {[%emt 0:00:04]} 71. Rxe2 {[%emt 0:00:01]} Kf6 {[%emt 0:00:00]} 72. Kc2 {[%emt 0:00:01]} e4 {[%emt 0:00:05]} 73. Nd1 {[%emt 0:00:15]} Ke5 {[%emt 0:00:03]} 74. Rg2 {[%emt 0:00:05]} d4 {[%emt 0:00:03]} 75. Nb2 {[%emt 0:00:09]} Rc6+ {[%emt 0:00:01]} 76. Kd2 {[%emt 0:00:06]} Kf4 {[%emt 0:00:00]} 77. Rf2+ {[%emt 0:00:05]} Kg3 {[%emt 0:00:02]} 78. Rf7 {[%emt 0:00:07]} g5 {[%emt 0:00:05]} 79. Re7 {[%emt 0:00:05]} Kf4 {[%emt 0:00:03]} 80. Rf7+ {[%emt 0:00:01]} Ke5 {[%emt 0:00:10]} 81. Re7+ {[%emt 0:00:05]} Kf5 {[%emt 0:00:01]} 82. Rf7+ {[%emt 0:00:04]} Ke6 {[%emt 0:00:01]} 83. Rf8 {[%emt 0:00:06]} Rc3 {[%emt 0:00:03]} 84. Nd1 {[%emt 0:00:07]} Rh3 {[%emt 0:00:07]} 85. Re8+ {[%emt 0:00:05]} Kf5 {[%emt 0:00:05]} 86. Rf8+ {[%emt 0:00:04]} Kg6 {[%emt 0:00:08]} 87. Rg8+ {[%emt 0:00:01]} Kf6 {[%emt 0:00:03]} 88. Rd8 {[%emt 0:00:10]} Rh2+ {[%emt 0:00:02]} 89. Ke1 {[%emt 0:00:00]} Ke5 {[%emt 0:00:01]} 90. Re8+ {[%emt 0:00:07]} Kd5 {[%emt 0:00:03]} 91. Rd8+ {[%emt 0:00:02]} Kc4 {[%emt 0:00:01]} 92. Rc8+ {[%emt 0:00:06]} Kd5 {[%emt 0:00:29]} 93. Rd8+ {[%emt 0:00:01]} Ke5 {[%emt 0:00:00]} 94. Re8+ {[%emt 0:00:00]} Kf4 {[%emt 0:00:03]} 95. Rf8+ $11 {[%emt 0:00:07]} Kg3 {[%emt 0:00:05]} 96. Rd8 {[%emt 0:00:18]} d3 {[%emt 0:00:05]} 97. Nc3 {[%emt 0:00:06]} Kf3 {[%emt 0:00:06]} 98. Rf8+ {[%emt 0:00:05]} Ke3 {[%emt 0:00:02]} 99. Nd5+ {[%emt 0:00:04]} Kd4 {[%emt 0:00:01]} 100. Nf6 {[%emt 0:00:06]} e3 {[%emt 0:00:05]} 101. Rd8+ {[%emt 0:00:02]} Kc4 {[%emt 0:00:04]} 102. Rc8+ {[%emt 0:00:03]} Kb5 {[%emt 0:00:00]} 103. Rb8+ {[%emt 0:00:06]} Ka6 {[%emt 0:00:05]} 104. Kf1 {[%emt 0:00:09]} Rf2+ {[%emt 0:00:01]} 105. Kg1 {[%emt 0:00:05]} Rxf6 {[%emt 0:00:03]} 106. Re8 {[%emt 0:00:05]} e2 {[%emt 0:00:05]} 107. Kg2 {[%emt 0:00:05]} Rf1 {[%emt 0:00:02]} 108. Re6+ 0-1

[Event "FRA-ch Universities 2019"]
[Site "Paris"]
[Date "2019.02.03"]
[Round "7"]
[White "Ribiere, Damien"]
[Black "Brethes, Francois"]
[Result "1/2-1/2"]
[ECO "B06"]
[WhiteElo "2042"]
[BlackElo "2267"]
[Annotator "ChessBase"]
[PlyCount "115"]
[EventDate "2019.02.01"]
[EventType "swiss"]
[EventCountry "FRA"]
[SourceTitle "playchess.com"]
[Source "ChessBase"]
[SourceQuality "1"]
[TimeControl "900+5"]

1. e4 {[%emt 0:00:00]} g6 {[%emt 0:00:01]} 2. Nc3 {[%emt 0:00:02]} Bg7 {[%emt 0:00:02]} 3. a3 {[%emt 0:00:03]} d6 {[%emt 0:00:41]} 4. Bc4 {[%emt 0:00:02]} Nf6 {[%emt 0:00:06]} 5. Ba2 {[%emt 0:00:04]} c5 {[%emt 0:00:38]} 6. d3 {[%emt 0:00:03]} Nc6 {[%emt 0:00:01]} 7. Nge2 {[%emt 0:00:03]} e5 {[%emt 0:03:58]} 8. O-O {[%emt 0:00:17]} Be6 {[%emt 0:00:01]} 9. f4 {[%emt 0:02:25]} Bxa2 {[%emt 0:00:07]} 10. Rxa2 {[%emt 0:00:02]} exf4 {[%emt 0:01:09]} 11. Bxf4 {[%emt 0:00:17]} Nh5 {[%emt 0:00:13]} 12. Be3 {[%emt 0:02:16]} O-O {[%emt 0:01:19]} 13. Nd5 {[%emt 0:00:25]} Ne5 {[%emt 0:00:44]} 14. h3 {[%emt 0:00:41]} Qh4 {[%emt 0:00:39]} 15. Qd2 {[%emt 0:00:59]} Ng3 {[%emt 0:02:25]} 16. Nxg3 {[%emt 0:00:25]} Qxg3 {[%emt 0:00:01]} 17. Kh1 {[%emt 0:03:15]} Nd7 {[%emt 0:01:04]} 18. Bf4 {[%emt 0:01:07]} Qh4 {[%emt 0:00:01]} 19. Bxd6 {[%emt 0:00:12]} Be5 {[%emt 0:01:01]} 20. Bxe5 {[%emt 0:00:52]} Nxe5 {[%emt 0:00:02]} 21. Nf6+ {[%emt 0:00:01]} Kg7 {[%emt 0:00:04]} 22. Raa1 {[%emt 0:00:43]} Rfd8 {[%emt 0:00:02]} 23. Rf4 {[%emt 0:00:50]} Qg3 {[%emt 0:00:43]} 24. Raf1 {[%emt 0:00:12]} b6 {[%emt 0:00:02]} 25. Ng4 {[%emt 0:00:44]} Nxg4 {[%emt 0:00:02]} 26. Rxf7+ {[%emt 0:00:24]} Kg8 {[%emt 0:00:06]} 27. hxg4 {[%emt 0:00:04]} Rf8 {[%emt 0:00:30]} 28. Rxf8+ {[%emt 0:00:27]} Rxf8 {[%emt 0:00:01]} 29. Rxf8+ {[%emt 0:00:04]} Kxf8 {[%emt 0:00:01]} 30. Qg5 {[%emt 0:00:04]} Kg7 {[%emt 0:00:18]} 31. e5 {[%emt 0:00:08]} h5 {[%emt 0:00:34]} 32. Qf6+ {[%emt 0:00:07]} Kh7 {[%emt 0:00:00]} 33. Qf7+ {[%emt 0:00:03]} Kh6 {[%emt 0:00:01]} 34. Qf8+ {[%emt 0:00:09]} Kg5 {[%emt 0:00:10]} 35. Qf6+ {[%emt 0:00:10]} Kh6 {[%emt 0:00:01]} 36. gxh5 {[%emt 0:00:09]} Kxh5 {[%emt 0:00:06]} 37. Qh8+ {[%emt 0:00:01]} Kg5 {[%emt 0:00:12]} 38. Qf6+ {[%emt 0:00:05]} Kh6 {[%emt 0:00:05]} 39. e6 {[%emt 0:00:02]} Qd6 {[%emt 0:00:28]} 40. Qf7 {[%emt 0:00:10]} Qe5 {[%emt 0:00:06]} 41. Qf8+ {[%emt 0:00:05]} Kg5 {[%emt 0:00:02]} 42. Qd8+ {[%emt 0:00:09]} Kg4 43. Qf8 {[%emt 0:00:07]} Qxe6 {[%emt 0:00:17]} 44. Qf3+ {[%emt 0:00:01]} Kg5 {[%emt 0:00:01]} 45. Qg3+ {[%emt 0:00:01]} Kf6 {[%emt 0:00:06]} 46. Kh2 {[%emt 0:00:02]} g5 {[%emt 0:00:10]} 47. Qf3+ {[%emt 0:00:02]} Kg6 {[%emt 0:00:01]} 48. Qe4+ {[%emt 0:00:00]} Qxe4 {[%emt 0:00:02]} 49. dxe4 {[%emt 0:00:01]} Kf6 {[%emt 0:00:00]} 50. Kg3 Ke5 51. Kf3 {[%emt 0:00:01]} Kd4 {[%emt 0:00:07]} 52. c3+ {[%emt 0:00:01]} Ke5 {[%emt 0:00:06]} 53. Ke3 {[%emt 0:00:01]} g4 {[%emt 0:00:07]} 54. g3 {[%emt 0:00:00]} c4 {[%emt 0:00:02]} 55. a4 {[%emt 0:00:09]} a5 {[%emt 0:00:10]} 56. Kd2 {[%emt 0:00:06]} Kxe4 57. Ke2 Kd5 {[%emt 0:00:07]} 58. Kd2 {[%emt 0:00:12]} 1/2-1/2

[Event "FRA-ch Universities 2019"]
[Site "Paris"]
[Date "2019.02.03"]
[Round "7"]
[White "Fines, Adrien"]
[Black "Toure, Vasanth"]
[Result "0-1"]
[ECO "A14"]
[WhiteElo "1756"]
[BlackElo "2064"]
[Annotator "NA"]
[PlyCount "83"]
[EventDate "2019.02.01"]
[EventType "swiss"]
[EventCountry "FRA"]
[SourceTitle "playchess.com"]
[Source "ChessBase"]
[SourceQuality "1"]
[TimeControl "900+5"]

1. c4 {[%emt 0:00:00]} Nf6 {[%emt 0:00:02]} 2. g3 {[%emt 0:00:00]} e6 {[%emt 0:00:01]} 3. Bg2 {[%emt 0:00:00]} d5 {[%emt 0:00:01]} 4. Nf3 {[%emt 0:00:01]} Be7 {[%emt 0:00:12]} 5. O-O {[%emt 0:00:03]} O-O {[%emt 0:00:03]} 6. b3 {[%emt 0:00:02]} c6 {[%emt 0:01:56]} 7. Bb2 {[%emt 0:00:02]} Re8 {[%emt 0:00:14]} 8. d3 {[%emt 0:00:30]} Nbd7 {[%emt 0:00:42]} 9. Nbd2 {[%emt 0:00:02]} b5 {[%emt 0:00:35]} 10. e4 {[%emt 0:00:09]} bxc4 {[%emt 0:00:16]} 11. bxc4 {[%emt 0:00:03]} Nc5 {[%emt 0:01:00]} 12. e5 {[%emt 0:02:17]} Nfd7 {[%emt 0:00:01]} 13. d4 {[%emt 0:00:28]} Nd3 {[%emt 0:00:35]} 14. Bc3 {[%emt 0:00:02]} Ba6 {[%emt 0:00:36]} 15. Qa4 {[%emt 0:01:12]} (15. Ne1 $5 {[%cal Re1d3]} dxc4 16. Bxc6 $14) 15... Qc8 {[%emt 0:00:00]} 16. Rfd1 {[%emt 0:02:03]} Nb6 {[%emt 0:00:10]} 17. Qa5 $17 {[%emt 0:01:13]} c5 {[%emt 0:05:01]} 18. cxd5 {[%emt 0:00:36]} Nxd5 {[%emt 0:00:15]} 19. Ne4 {[%emt 0:02:34]} cxd4 {[%emt 0:00:56]} 20. Bxd4 {[%emt 0:00:59]} Bb4 {[%emt 0:00:10]} 21. Qa4 {[%emt 0:00:02]} Nb6 {[%emt 0:00:46]} 22. Bxb6 {[%emt 0:01:00]} axb6 {[%emt 0:00:41]} 23. Rxd3 {[%emt 0:00:04]} Bxd3 {[%emt 0:00:04]} 24. Qxb4 {[%emt 0:00:02]} Bxe4 {[%emt 0:00:38]} 25. Qxe4 {[%emt 0:00:02]} Qc3 {[%emt 0:00:01]} 26. Rb1 {[%emt 0:01:30]} Rxa2 {[%emt 0:00:25]} 27. Ng5 {[%emt 0:00:04]} h6 {[%emt 0:00:56]} 28. Qh7+ {[%emt 0:01:14]} Kf8 {[%emt 0:00:01]} 29. Nf3 {[%emt 0:00:25]} Qc2 {[%emt 0:00:29]} 30. Qxc2 {[%emt 0:00:02]} Rxc2 {[%emt 0:00:01]} 31. Rxb6 {[%emt 0:00:06]} Rd8 {[%emt 0:00:06]} 32. Bf1 {[%emt 0:00:08]} g5 {[%emt 0:00:12]} 33. h3 {[%emt 0:00:10]} Rc3 {[%emt 0:00:01]} 34. Kg2 {[%emt 0:00:02]} Rd5 {[%emt 0:00:05]} 35. Rb8+ {[%emt 0:00:11]} Kg7 {[%emt 0:00:02]} 36. Rb7 {[%emt 0:00:08]} Kg6 {[%emt 0:00:21]} 37. g4 {[%emt 0:00:26]} Rd1 {[%emt 0:00:06]} 38. Rb2 {[%emt 0:00:04]} Rxf1 {[%emt 0:00:06]} 39. Kxf1 {[%emt 0:00:05]} Rxf3 {[%emt 0:00:01]} 40. Kg2 {[%emt 0:00:01]} Rd3 {[%emt 0:00:04]} 41. f3 {[%emt 0:00:04]} h5 {[%emt 0:00:04]} 42. Re2 0-1

[Event "FRA-ch Universities 2019"]
[Site "Paris"]
[Date "2019.02.03"]
[Round "8"]
[White "Sochacki, Wojtek"]
[Black "Geronimi, Pierre-Francois"]
[Result "1-0"]
[ECO "B06"]
[WhiteElo "2348"]
[BlackElo "2042"]
[Annotator "NA"]
[PlyCount "48"]
[EventDate "2019.02.01"]
[EventType "swiss"]
[EventCountry "FRA"]
[SourceTitle "playchess.com"]
[Source "ChessBase"]
[SourceQuality "1"]
[TimeControl "900+5"]

1. e4 {[%emt 0:00:26]} g6 {[%emt 0:00:00]} 2. d4 {[%emt 0:00:04]} Bg7 {[%emt 0:00:00]} 3. c4 {[%emt 0:00:01]} c5 {[%emt 0:00:07]} 4. d5 {[%emt 0:00:03]} d6 {[%emt 0:00:04]} 5. Nc3 {[%emt 0:00:02]} Nf6 {[%emt 0:00:06]} 6. Bd3 {[%emt 0:00:06]} O-O {[%emt 0:00:10]} 7. h3 {[%emt 0:00:05]} e6 {[%emt 0:00:18]} 8. Nf3 exd5 {[%emt 0:00:16]} 9. exd5 {[%emt 0:00:04]} Re8+ {[%emt 0:00:07]} 10. Be3 {[%emt 0:00:02]} a6 {[%emt 0:00:52]} 11. a4 {[%emt 0:00:03]} Nbd7 {[%emt 0:00:03]} 12. O-O {[%emt 0:00:02]} h6 {[%emt 0:01:53]} 13. Qd2 {[%emt 0:00:01]} Kh7 {[%emt 0:01:35]} 14. Rae1 {[%emt 0:00:01]} Ne5 {[%emt 0:00:31]} 15. Nxe5 {[%emt 0:00:02]} Rxe5 {[%emt 0:00:01]} 16. Bf4 {[%emt 0:00:01]} Nh5 {[%emt 0:01:35]} 17. Bxe5 {[%emt 0:00:49]} Bxe5 {[%emt 0:00:07]} 18. Rxe5 {[%emt 0:03:30]} dxe5 {[%emt 0:00:01]} 19. Re1 {[%emt 0:00:01]} Nf4 {[%emt 0:05:08]} 20. Rxe5 {[%emt 0:01:11]} Qf6 {[%emt 0:00:01]} 21. Re4 {[%emt 0:00:01]} Nxd3 {[%emt 0:00:47]} 22. Qxd3 {[%emt 0:00:01]} Bf5 {[%emt 0:00:01]} 23. Qf3 {[%emt 0:00:21]} Qb6 {[%emt 0:01:46]} 24. Re2 {[%emt 0:00:26]} Kg8 {[%emt 0:00:24]} 1-0

[Event "FRA-ch Universities 2019"]
[Site "Paris"]
[Date "2019.02.03"]
[Round "8"]
[White "Devallee, Jeremie"]
[Black "Daeschler, Florian"]
[Result "0-1"]
[ECO "A00"]
[WhiteElo "2317"]
[BlackElo "2276"]
[Annotator "NA"]
[PlyCount "78"]
[EventDate "2019.02.01"]
[EventType "swiss"]
[EventCountry "FRA"]
[SourceTitle "playchess.com"]
[Source "ChessBase"]
[SourceQuality "1"]
[TimeControl "900+5"]

1. Nc3 {[%emt 0:03:13]} Nf6 {[%emt 0:00:00]} 2. g4 {[%emt 0:00:01]} d5 {[%emt 0:00:16]} 3. g5 {[%emt 0:00:01]} Ng8 {[%emt 0:00:15]} 4. d4 {[%emt 0:00:09]} Bf5 {[%emt 0:00:21]} 5. Bg2 {[%emt 0:00:19]} e6 {[%emt 0:00:02]} 6. Nf3 {[%emt 0:00:12]} Nd7 {[%emt 0:00:32]} 7. Bf4 {[%emt 0:00:06]} Bd6 {[%emt 0:00:16]} 8. Ne5 {[%emt 0:00:17]} Ne7 {[%emt 0:00:26]} 9. Bg3 {[%emt 0:00:41]} Bxe5 {[%emt 0:00:26]} 10. dxe5 {[%emt 0:00:03]} Ng6 {[%emt 0:00:02]} 11. f4 {[%emt 0:00:02]} Nb6 {[%emt 0:01:02]} 12. e4 {[%emt 0:00:22]} dxe4 {[%emt 0:00:06]} 13. Nxe4 {[%emt 0:00:02]} Qxd1+ {[%emt 0:00:14]} 14. Rxd1 {[%emt 0:00:02]} Nd5 {[%emt 0:00:11]} 15. Nc5 {[%emt 0:00:28]} O-O {[%emt 0:01:56]} 16. Bxd5 {[%emt 0:00:11]} exd5 {[%emt 0:00:01]} 17. O-O {[%emt 0:01:29]} b6 {[%emt 0:00:30]} 18. Nd3 {[%emt 0:00:03]} c5 {[%emt 0:00:08]} 19. c3 {[%emt 0:00:08]} Rad8 {[%emt 0:00:13]} 20. Ne1 {[%emt 0:01:00]} Ne7 {[%emt 0:00:19]} 21. b4 {[%emt 0:00:27]} cxb4 {[%emt 0:01:21]} 22. cxb4 {[%emt 0:00:02]} Be4 {[%emt 0:00:31]} 23. Nf3 {[%emt 0:00:17]} Nf5 {[%emt 0:00:05]} 24. Kf2 {[%emt 0:01:15]} Rc8 {[%emt 0:00:05]} 25. Rc1 {[%emt 0:00:02]} a5 {[%emt 0:02:42]} 26. bxa5 {[%emt 0:01:34]} bxa5 {[%emt 0:00:00]} 27. Nd2 {[%emt 0:00:02]} Bd3 {[%emt 0:00:16]} 28. Rfd1 {[%emt 0:00:01]} Bc2 {[%emt 0:00:44]} 29. Re1 {[%emt 0:00:09]} d4 $17 {[%emt 0:00:36]} 30. Kf3 {[%emt 0:00:26]} Rc3+ {[%emt 0:00:10]} 31. Kg2 {[%emt 0:00:48]} Rfc8 {[%emt 0:00:04]} 32. Nf3 {[%emt 0:01:38]} Bd3 {[%emt 0:01:30]} 33. Rcd1 {[%emt 0:00:30]} Ne3+ {[%emt 0:00:06]} 34. Rxe3 {[%emt 0:01:12]} dxe3 {[%emt 0:00:01]} 35. Ne1 {[%emt 0:00:03]} Be4+ {[%emt 0:00:10]} 36. Kf1 {[%emt 0:00:14]} Bf5 {[%emt 0:00:28]} 37. Rd5 {[%emt 0:00:15]} Ra3 {[%emt 0:00:28]} 38. Ke2 {[%emt 0:00:17]} Bg4+ {[%emt 0:00:05]} 39. Kf1 {[%emt 0:00:03]} Rxa2 {[%emt 0:00:08]} 0-1

[Event "FRA-ch Universities 2019"]
[Site "Paris"]
[Date "2019.02.03"]
[Round "8"]
[White "Lever, Erwan"]
[Black "Ribiere, Damien"]
[Result "1-0"]
[ECO "E91"]
[WhiteElo "2275"]
[BlackElo "2042"]
[Annotator "NA"]
[PlyCount "127"]
[EventDate "2019.02.01"]
[EventType "swiss"]
[EventCountry "FRA"]
[SourceTitle "playchess.com"]
[Source "ChessBase"]
[SourceQuality "1"]
[TimeControl "900+5"]

1. d4 {[%emt 0:00:00]} (1. c4 g6 2. d4 Bg7 3. Nc3 d6 4. e4 {0-1 (32) Abdisalimov,A (2317)-Sindarov,J (2430) Tashkent 2018}) 1... Nf6 {[%emt 0:00:00]} 2. c4 {[%emt 0:00:00]} g6 {[%emt 0:00:00]} 3. Nc3 {[%emt 0:00:00]} Bg7 {[%emt 0:00:00]} 4. e4 {[%emt 0:00:00]} d6 {[%emt 0:00:00]} 5. Nf3 {[%emt 0:00:01]} O-O {[%emt 0:00:00]} 6. Be2 {[%emt 0:00:01]} Bg4 {[%emt 0:00:01]} 7. Be3 $146 {[%emt 0:00:02]} ({Predecessor:} 7. O-O Nfd7 {0-1 (32) Abdisalimov,A (2317)-Sindarov,J (2430) Tashkent 2018 0-1 (54) Pena Mor,D (1858)-Dahale,A (2040) Barcelona 2018}) 7... Nfd7 {[%emt 0:00:03]} 8. O-O {[%emt 0:00:11]} Nc6 {[%emt 0:00:01]} 9. Rc1 {[%emt 0:01:01]} Bxf3 {[%emt 0:00:04]} ({Predecessor:} 9... e5 10. d5 Bxf3 {0-1 (32) Abdisalimov,A (2317)-Sindarov,J (2430) Tashkent 2018 0-1 (54) Pena Mor,D (1858)-Dahale,A (2040) Barcelona 2018}) 10. Bxf3 {[%emt 0:00:02]} e5 {[%emt 0:00:01]} 11. d5 {[%emt 0:00:07]} Nd4 {[%emt 0:00:01]} 12. Bxd4 {[%emt 0:00:44] E91: King's Indian: Classical: 6 Be2, unusual replies including 6...c5 and 6...Bg4} exd4 {[%emt 0:00:02]} 13. Nb5 {[%emt 0:00:09]} d3 {[%emt 0:01:42]} 14. Qxd3 {[%emt 0:00:02]} Bxb2 {[%emt 0:00:01]} 15. Rb1 {[%emt 0:00:31]} (15. Rce1 Qf6 16. Qe2 a6 17. Rb1 axb5 18. Rxb2 bxc4 19. Rxb7 Ne5 20. Rxc7 {0-1 (32) Abdisalimov,A (2317)-Sindarov,J (2430) Tashkent 2018}) 15... Bg7 {[%emt 0:00:23]} 16. g3 {[%emt 0:01:09]} ({Predecessor:} 16. Rfd1 Nc5 17. Qc2 a6 18. Nd4 Bxd4 19. Rxd4 Qf6 {0-1 (54) Pena Mor,D (1858)-Dahale,A (2040) Barcelona 2018}) 16... Nc5 {[%emt 0:01:42]} 17. Qc2 {[%emt 0:00:21]} a6 {[%emt 0:00:23]} 18. Na3 {[%emt 0:00:12]} Qf6 {[%emt 0:01:10]} 19. Bg2 {[%emt 0:00:02]} Rae8 {[%emt 0:00:01]} 20. Rbd1 {[%emt 0:00:48]} Qb2 {[%emt 0:00:44]} 21. Qxb2 {[%emt 0:00:03]} Bxb2 {[%emt 0:00:01]} 22. Nc2 {[%emt 0:00:23]} Nxe4 {[%emt 0:00:07]} 23. Rb1 {[%emt 0:00:30]} Bg7 {[%emt 0:00:42]} 24. Rxb7 {[%emt 0:00:25]} Nd2 {[%emt 0:00:13]} 25. Rd1 {[%emt 0:00:04]} Nxc4 {[%emt 0:00:09]} 26. Rxc7 {[%emt 0:00:03]} Rc8 {[%emt 0:00:26]} 27. Rxc8 {[%emt 0:01:43]} Rxc8 {[%emt 0:00:01]} 28. Nb4 {[%emt 0:00:01]} Nb2 {[%emt 0:01:08]} 29. Re1 {[%emt 0:02:06]} Bc3 {[%emt 0:03:35]} 30. Rc1 {[%emt 0:00:02]} Na4 {[%emt 0:02:05]} 31. Nc6 {[%emt 0:00:15]} Re8 {[%emt 0:00:24]} 32. Bf1 {[%emt 0:00:14]} a5 $14 {[%emt 0:00:21]} 33. Bb5 {[%emt 0:00:17]} Bd2 {[%emt 0:00:17]} 34. Rc2 {[%emt 0:03:09]} Nc3 {[%emt 0:00:02]} 35. a4 {[%emt 0:01:03]} Be1 {[%emt 0:00:19]} 36. Nd4 {[%emt 0:00:50]} Re5 {[%emt 0:00:22]} 37. Nf3 {[%emt 0:00:09]} Re7 {[%emt 0:00:15]} 38. Bc6 {[%emt 0:00:42]} Nb1 {[%emt 0:00:20]} 39. Rc1 {[%emt 0:00:07]} Nd2 {[%emt 0:00:13]} 40. Nxe1 {[%emt 0:00:07]} f5 {[%emt 0:00:18]} 41. Nd3 {[%emt 0:00:03]} Nf3+ {[%emt 0:00:04]} 42. Kg2 {[%emt 0:00:04]} Nd4 {[%emt 0:00:04]} 43. Nf4 {[%emt 0:00:04]} Kg7 {[%emt 0:00:10]} 44. Rd1 {[%emt 0:00:14]} Nc2 {[%emt 0:00:30]} 45. Ne6+ {[%emt 0:00:04]} Kf6 {[%emt 0:00:01]} 46. Rc1 {[%emt 0:00:07]} Nb4 {[%emt 0:00:02]} 47. Nd4 {[%emt 0:00:11]} Re4 {[%emt 0:00:08]} 48. Nb5 {[%emt 0:00:03]} Ke7 {[%emt 0:00:16]} 49. Nc3 {[%emt 0:00:12]} Rc4 {[%emt 0:00:04]} 50. Re1+ {[%emt 0:00:01]} Kf7 {[%emt 0:00:03]} 51. Nb5 {[%emt 0:00:02]} Rc2 {[%emt 0:00:07]} 52. Nxd6+ {[%emt 0:00:02]} Kf6 {[%emt 0:00:03]} 53. Re6+ {[%emt 0:00:01]} Kg5 {[%emt 0:00:01]} 54. Nf7+ {[%emt 0:00:01]} Kh5 {[%emt 0:00:03]} 55. h3 {[%emt 0:00:29]} Rd2 {[%emt 0:00:04]} 56. Re5 {[%emt 0:00:12]} Nd3 {[%emt 0:00:06]} 57. g4+ {[%emt 0:00:02]} Kh4 {[%emt 0:00:01]} 58. Re3 {[%emt 0:00:06]} Rxf2+ {[%emt 0:00:05]} 59. Kg1 {[%emt 0:00:02]} Rd2 {[%emt 0:00:01]} 60. gxf5 {[%emt 0:00:03]} gxf5 {[%emt 0:00:03]} 61. d6 {[%emt 0:00:02]} Nf4 {[%emt 0:00:04]} 62. d7 {[%emt 0:00:06]} Rd1+ {[%emt 0:00:05]} 63. Kf2 {[%emt 0:00:05]} Rd2+ {[%emt 0:00:25]} 64. Kf3 {[%emt 0:00:01]} 1-0